fUST/lending_fUST_20240714
["ID","MTS","AMOUNT","RATE_DAILY","PERIOD"]
[331946699,1720886475570,610.44931723,0.00016255,2]
[331946702,1720886500322,412.96318042,0.00016255,2]
[331946703,1720886503008,522.92423862,0.00016255,2]
[331946718,1720886682579,155.48318217,0.00016255,2]
[331946722,1720886730294,413.0942951,0.00016255,2]
[331946730,1720886836358,-580.67644492,0.00018899,2]
[331946731,1720886836379,-412.83206574,0.00019165,2]
[331946732,1720886836399,-162.1578694,0.00021035,2]
[331946733,1720886836421,-250.0,0.00021062,2]
[331946734,1720886836444,-374.68623665,0.00021095,2]
[331946735,1720886836465,-543.660473,0.00021096,2]
[331946736,1720886836492,-166.6666671,0.00021918,2]
[331946737,1720886836515,-3000.0,0.00022171,2]
[331946738,1720886836535,-934.61342223,0.0002223,2]
[331946739,1720886836556,-154.57491897,0.00022265,2]
[331946740,1720886836576,-300.0,0.00022316,2]
[331946741,1720886836597,-300.0,0.00022316,2]
[331946742,1720886836617,-500.0,0.00022317,2]
[331946743,1720886836636,-500.0,0.00022317,2]
[331946744,1720886836658,-500.0,0.00022317,2]
[331946745,1720886836680,-500.0,0.00022317,2]
[331946746,1720886836702,-549.21198201,0.00022317,2]
[331946747,1720886836722,-484.11307043,0.00022317,2]
[331946748,1720886836742,-500.0,0.00022317,2]
[331946749,1720886836762,-500.0,0.00022317,2]
[331946750,1720886836782,-500.0,0.00022317,2]
[331946751,1720886836805,-500.0,0.00022317,2]
[331946752,1720886836826,-500.0,0.00022317,2]
[331946753,1720886836846,-500.0,0.00022317,2]
[331946754,1720886836866,-500.0,0.00022317,2]
[331946755,1720886836889,-500.0,0.00022317,2]
[331946756,1720886836911,-500.0,0.00022317,2]
[331946757,1720886836932,-500.0,0.00022317,2]
[331946758,1720886836955,-500.0,0.00022317,2]
[331946759,1720886836976,-500.0,0.00022317,2]
[331946760,1720886836997,-500.0,0.00022317,2]
[331946761,1720886837018,-500.0,0.00022317,2]
[331946762,1720886837039,-24900.0,0.00022318,2]
[331946763,1720886837060,-1652.07443484,0.0002233,2]
[331946764,1720886837081,-303.663077,0.00022348,2]
[331946765,1720886837102,-154.55950541,0.00023455,2]
[331946766,1720886837125,-154.55950541,0.00023455,2]
[331946767,1720886837146,-162.064828,0.00023608,2]
[331946768,1720886837167,-2635.5999837,0.00023697,2]
[331946769,1720886837189,-420.0,0.00024242,2]
[331946770,1720886837212,-420.0,0.00024547,2]
[331946771,1720886837233,-500.0,0.00024657,2]
[331946772,1720886837258,-500.0,0.00024657,2]
[331946773,1720886837279,-500.0,0.00024657,2]
[331946774,1720886837301,-230.62479903,0.00024657,2]
[331946775,1720886837321,-500.0,0.00024657,2]
[331946776,1720886837341,-500.0,0.00024657,2]
[331946777,1720886837361,-1000.0,0.00024657,5]
[331946778,1720886837382,-500.0,0.00024657,2]
[331946779,1720886837402,-500.0,0.00024657,2]
[331946780,1720886837425,-500.0,0.00024657,2]
[331946781,1720886837450,-500.0,0.00024657,2]
[331946782,1720886837471,-500.0,0.00024657,2]
[331946783,1720886837494,-500.0,0.00024657,2]
[331946784,1720886837519,-500.0,0.00024657,2]
[331946785,1720886837539,-521.25,0.00024657,2]
[331946786,1720886837560,-500.0,0.00024657,2]
[331946787,1720886837581,-500.0,0.00024657,2]
[331946788,1720886837603,-500.0,0.00024657,2]
[331946789,1720886837625,-500.0,0.00024657,2]
[331946790,1720886837646,-500.0,0.00024657,2]
[331946791,1720886837667,-500.0,0.00024657,2]
[331946792,1720886837688,-245.26911925,0.00024657,2]
[331946793,1720886837710,-1249.95,0.00024657,2]
[331946794,1720886837730,-2038.71,0.00024657,2]
[331946795,1720886837754,-500.0,0.00024657,2]
[331946796,1720886837776,-500.0,0.00024657,2]
[331946797,1720886838181,-853.27,0.00024657,2]
[331946798,1720886838204,-500.0,0.00024657,2]
[331946799,1720886838226,-500.0,0.00024657,2]
[331946800,1720886838250,-500.0,0.00024657,2]
[331946801,1720886838276,-500.0,0.00024657,2]
[331946802,1720886838301,-500.0,0.00024657,2]
[331946803,1720886838324,-532.21,0.00024657,2]
[331946804,1720886838461,-500.0,0.00024657,2]
[331946805,1720886838488,-500.0,0.00024657,2]
[331946806,1720886838516,-500.0,0.00024657,2]
[331946807,1720886838555,-500.0,0.00024657,2]
[331946808,1720886838582,-500.0,0.00024657,2]
[331946809,1720886838610,-500.0,0.00024657,2]
[331946810,1720886838635,-409.63895255,0.00024657,2]
[331946811,1720886838659,-500.0,0.00024657,2]
[331946812,1720886838683,-500.0,0.00024657,2]
[331946813,1720886838706,-500.0,0.00024657,2]
[331946814,1720886838730,-500.0,0.00024657,2]
[331946815,1720886838753,-500.0,0.00024657,2]
[331946816,1720886838777,-500.0,0.00024657,2]
[331946817,1720886838799,-500.0,0.00024657,2]
[331946818,1720886838823,-500.0,0.00024657,2]
[331946819,1720886838845,-500.0,0.00024657,2]
[331946820,1720886838868,-500.0,0.00024657,2]
[331946821,1720886838895,-251.05,0.00024657,2]
[331946822,1720886838919,-303.76552302,0.00024897,2]
[331946823,1720886838943,-500.0,0.00024897,2]
[331946824,1720886838972,-500.0,0.00024898,2]
[331946825,1720886838995,-354.68062276,0.00024898,2]
[331946826,1720886839017,-500.0,0.00024898,2]
[331946827,1720886839040,-500.0,0.00024898,2]
[331946828,1720886839067,-500.0,0.00024898,2]
[331946829,1720886839088,-553.31,0.00024898,2]
[331946830,1720886839110,-500.0,0.00024898,2]
[331946831,1720886839132,-520.89545066,0.00024898,2]
[331946832,1720886839155,-500.0,0.00024898,2]
[331946833,1720886839177,-500.0,0.00024898,2]
[331946834,1720886839200,-500.0,0.00024899,2]
[331946835,1720886839221,-500.0,0.00024899,2]
[331946836,1720886839245,-500.0,0.00024899,2]
[331946837,1720886839266,-544.94418373,0.00024899,2]
[331946838,1720886839289,-500.0,0.00024899,2]
[331946839,1720886839311,-500.0,0.00024899,2]
[331946840,1720886839333,-500.0,0.00024899,2]
[331946841,1720886839355,-500.0,0.00024899,2]
[331946842,1720886839377,-500.0,0.00024899,2]
[331946843,1720886839400,-500.0,0.00024899,2]
[331946844,1720886839425,-500.0,0.00024899,2]
[331946845,1720886839449,-500.0,0.00024899,2]
[331946846,1720886839475,-500.0,0.00024899,2]
[331946847,1720886839499,-581.34767967,0.00024899,2]
[331946848,1720886839525,-500.0,0.00024899,2]
[331946849,1720886839548,-11770.26,0.00024921,3]
[331946850,1720886839571,-500.0,0.00024931,2]
[331946851,1720886839595,-500.0,0.00024931,2]
[331946852,1720886839619,-500.0,0.00024931,2]
[331946853,1720886839643,-500.0,0.00024931,2]
[331946854,1720886839668,-500.0,0.00024931,2]
[331946855,1720886839691,-500.0,0.00024931,2]
[331946856,1720886839716,-1249.95,0.00024931,2]
[331946857,1720886839740,-2038.71,0.00024931,2]
[331946858,1720886839763,-853.27,0.00024931,2]
[331946859,1720886839787,-500.0,0.00024931,2]
[331946860,1720886839809,-500.0,0.00024931,2]
[331946861,1720886839831,-500.0,0.00024931,2]
[331946862,1720886839853,-500.0,0.00024931,2]
[331946863,1720886839876,-500.0,0.00024931,2]
[331946864,1720886839898,-482.03917732,0.00024931,2]
[331946865,1720886839921,-500.0,0.00024931,2]
[331946866,1720886839945,-500.0,0.00024931,2]
[331946867,1720886839968,-229.31956132,0.00025,2]
[331946868,1720886839990,-211.94060622,0.00025123,2]
[331946869,1720886840013,-311.76988718,0.00025123,2]
[331946870,1720886840035,-498.23542103,0.00025123,2]
[331946871,1720886840057,-500.0,0.00025123,2]
[331946872,1720886840079,-500.0,0.00025123,2]
[331946873,1720886840100,-204.30897043,0.00025123,2]
[331946874,1720886840122,-478.47540076,0.00025123,2]
[331946875,1720886840143,-177.4684035,0.00025123,2]
[331946876,1720886840164,-500.0,0.00025123,2]
[331946877,1720886840185,-500.0,0.00025123,2]
[331946878,1720886840206,-462.24497473,0.00025123,2]
[331946879,1720886840227,-500.0,0.00025123,2]
[331946880,1720886840249,-500.0,0.00025123,2]
[331946881,1720886840270,-500.0,0.00025123,2]
[331946882,1720886840292,-500.0,0.00025123,2]
[331946883,1720886840315,-500.0,0.00025123,2]
[331946884,1720886840336,-500.0,0.00025123,2]
[331946885,1720886840358,-500.0,0.00025123,2]
[331946886,1720886840380,-243.73,0.00025172,2]
[331946887,1720886840402,-617.6927099,0.00025173,2]
[331946888,1720886840428,-500.0,0.00025173,2]
[331946889,1720886840450,-500.0,0.00025173,2]
[331946890,1720886840473,-599.0,0.00025205,2]
[331946891,1720886840498,-500.0,0.00025205,2]
[331946892,1720886840521,-500.0,0.00025205,2]
[331946893,1720886840545,-500.0,0.00025205,2]
[331946894,1720886840569,-500.0,0.00025205,2]
[331946895,1720886840590,-500.0,0.00025205,2]
[331946896,1720886840612,-1249.95,0.00025205,2]
[331946897,1720886840636,-281.99012165,0.00025205,2]
[331946898,1720886848103,-1756.71987835,0.00025205,2]
[331946899,1720886848126,-853.27,0.00025205,2]
[331946900,1720886848147,-500.0,0.00025205,2]
[331946901,1720886848168,-500.0,0.00025205,2]
[331946902,1720886848191,-532.21,0.00025446,2]
[331946903,1720886848214,-448.22,0.00025447,2]
[331946904,1720886848236,-500.0,0.00025447,2]
[331946905,1720886848258,-1055.66189967,0.00025461,2]
[331946906,1720886848280,-500.0,0.00025479,2]
[331946907,1720886848302,-500.0,0.00025479,2]
[331946908,1720886848324,-500.0,0.00025479,2]
[331946909,1720886848346,-500.0,0.00025479,2]
[331946910,1720886848463,-500.0,0.00025479,2]
[331946911,1720886848503,-1249.95,0.00025479,2]
[331946912,1720886848526,-2038.71,0.00025479,2]
[331946913,1720886848548,-853.27,0.00025479,2]
[331946914,1720886848571,-611.65,0.00025479,2]
[331946915,1720886848591,-500.0,0.00025479,2]
[331946916,1720886848613,-7635.42034528,0.00025605,2]
[331946917,1720886848635,-500.0,0.00025721,2]
[331946918,1720886848657,-500.0,0.00025753,2]
[331946919,1720886848679,-500.0,0.00025753,2]
[331946920,1720886848702,-500.0,0.00025753,2]
[331946921,1720886848727,-500.0,0.00025753,2]
[331946922,1720886848755,-500.0,0.00025753,2]
[331946923,1720886848780,-1249.95,0.00025753,2]
[331946924,1720886848804,-2038.71,0.00025753,2]
[331946925,1720886848829,-853.27,0.00025753,2]
[331946926,1720886848850,-500.0,0.00025753,2]
[331946927,1720886848871,-9808.55,0.00025777,3]
[331946928,1720886848894,-17734.3023214,0.00025787,3]
[331946929,1720886848917,-532.21,0.00025837,2]
[331946930,1720886848944,-532.21,0.00025857,2]
[331946931,1720886848965,-280.29,0.00025857,2]
[331946932,1720886848986,-500.0,0.00025995,2]
[331946933,1720886849008,-500.0,0.00026027,2]
[331946934,1720886849029,-636.23190277,0.00026027,2]
[331946935,1720886849051,-500.0,0.00026027,2]
[331946936,1720886849074,-500.0,0.00026027,2]
[331946937,1720886849096,-569.14819008,0.00026027,2]
[331946938,1720886849116,-1249.95,0.00026027,2]
[331946939,1720886849138,-2038.71,0.00026027,2]
[331946940,1720886849161,-853.27,0.00026027,2]
[331946941,1720886849183,-518.08487076,0.00026027,2]
[331946942,1720886849207,-170.79925196,0.00026031,2]
[331946943,1720886849230,-500.0,0.00026269,2]
[331946944,1720886849253,-500.0,0.00026301,2]
[331946945,1720886849274,-1249.95,0.00026301,2]
[331946946,1720886849297,-2038.71,0.00026301,2]
[331946947,1720886849321,-853.27,0.00026301,2]
[331946948,1720886849342,-587.0,0.00026335,2]
[331946949,1720886849364,-1407.0,0.00026342,2]
[331946950,1720886849385,-4993.42086944,0.00026402,2]
[331946951,1720886849406,-355.78694576,0.00026427,2]
[331946952,1720886849431,-934.61342223,0.00026469,2]
[331946953,1720886849454,-500.0,0.00026575,2]
[331946954,1720886849476,-1249.95,0.00026575,2]
[331946955,1720886849498,-2038.71,0.00026575,2]
[331946956,1720886849523,-853.27,0.00026575,2]
[331946957,1720886849544,-355.78694576,0.00026689,2]
[331946958,1720886849564,-4993.42086944,0.00026781,2]
[331946959,1720886849586,-532.21,0.00026806,2]
[331946960,1720886849607,-500.0,0.00026849,2]
[331946961,1720886849627,-1249.95,0.00026849,2]
[331946962,1720886849648,-2038.71,0.00026849,2]
[331946963,1720886849669,-853.27,0.00026849,2]
[331946964,1720886849689,-355.78694576,0.00026942,2]
[331946965,1720886849710,-505.0,0.00027002,2]
[331946966,1720886849729,-4993.42086944,0.0002706,2]
[331946967,1720886849751,-500.0,0.00027123,2]
[331946968,1720886849772,-1249.95,0.00027123,2]
[331946969,1720886849794,-2038.71,0.00027123,2]
[331946970,1720886849815,-853.27,0.00027123,2]
[331946971,1720886849835,-543.660473,0.00027195,2]
[331946972,1720886849856,-7635.42034525,0.00027347,2]
[331946973,1720886849877,-355.78694576,0.00027357,2]
[331946974,1720886849900,-4993.42086944,0.00027359,2]
[331946975,1720886849920,-500.0,0.00027397,2]
[331946976,1720886849941,-1249.95,0.00027397,2]
[331946977,1720886849963,-711.25862246,0.00027397,2]
[331946990,1720886946221,-703.77459978,0.00024475,2]
[331946991,1720886946245,-300.0,0.00024656,2]
[331946992,1720886946266,-500.0,0.00024657,2]
[331946993,1720886946287,-500.0,0.00024657,2]
[331946994,1720886946307,-500.0,0.00024657,2]
[331946995,1720886946329,-500.0,0.00024657,2]
[331946996,1720886946350,-500.0,0.00024657,2]
[331946997,1720886946371,-500.0,0.00024657,2]
[331946998,1720886946394,-500.0,0.00024657,2]
[331946999,1720886946415,-500.0,0.00024657,2]
[331947000,1720886946436,-500.0,0.00024657,2]
[331947001,1720886946457,-500.0,0.00024657,2]
[331947002,1720886946481,-500.0,0.00024657,2]
[331947003,1720886946502,-500.0,0.00024657,2]
[331947004,1720886946523,-500.0,0.00024657,2]
[331947005,1720886946545,-1159.61,0.00024657,2]
[331947006,1720886946566,-500.0,0.00024657,2]
[331947007,1720886946588,-500.0,0.00024657,2]
[331947008,1720886946608,-500.0,0.00024657,2]
[331947009,1720886946628,-500.0,0.00024931,2]
[331947010,1720886946649,-1159.61,0.00024931,2]
[331947011,1720886949536,500.0,0.00024657,2]
[331947012,1720886951224,500.0,0.00024657,2]
[331947013,1720886952234,-500.0,0.00025205,2]
[331947014,1720886952256,-1159.61,0.00025205,2]
[331947015,1720886952278,-500.0,0.00025479,2]
[331947016,1720886952301,-1159.61,0.00025479,2]
[331947017,1720886952321,-500.0,0.00025753,2]
[331947018,1720886952346,-1159.61,0.00025753,2]
[331947019,1720886952368,-500.0,0.00026027,2]
[331947020,1720886952389,-1159.61,0.00026027,2]
[331947021,1720886952410,-151.49727369,0.00026199,2]
[331947022,1720886952430,-152.94115716,0.00026284,2]
[331947023,1720886952450,-500.0,0.00026301,2]
[331947024,1720886952474,-1159.61,0.00026301,2]
[331947025,1720886952496,-500.0,0.00026575,2]
[331947026,1720886952519,-1159.61,0.00026575,2]
[331947027,1720886952541,-4426.66915925,0.00026848,2]
[331947028,1720886952562,-495.85,0.00026849,2]
[331947029,1720886952586,-1159.61,0.00026849,2]
[331947030,1720886952607,-152.94115716,0.00026854,2]
[331947031,1720886952629,-153.89522402,0.00026931,2]
[331947032,1720886952650,-151.49727369,0.00026943,2]
[331947033,1720886952670,-158.024121,0.00026961,2]
[331947034,1720886952693,-1159.61,0.00027123,2]
[331947035,1720886952713,-151.49727369,0.00027128,2]
[331947036,1720886952734,-4161.1840578,0.00027169,2]
[331947037,1720886952864,-176.28659675,0.0002723,2]
[331947038,1720886952886,-151.49727369,0.0002724,2]
[331947039,1720886952908,-700.96006669,0.00027297,2]
[331947040,1720886952930,-151.49727369,0.00027326,2]
[331947041,1720886952952,-296.4891214,0.00027347,2]
[331947042,1720886952974,-609.34589671,0.00027396,2]
[331947043,1720886952996,-394.35688689,0.00027396,2]
[331947044,1720886953018,-853.27,0.00027397,2]
[331947045,1720886953038,-189.39290951,0.00027397,2]
[331947046,1720886953059,-2456.22816343,0.00027397,14]
[331947047,1720886953081,-1000.0,0.00027397,2]
[331947048,1720886953102,-428.62808121,0.00027397,2]
[331947049,1720886953122,-225.9011813,0.00027397,2]
[331947050,1720886953144,-1159.61,0.00027397,2]
[331947051,1720886953164,-154.55950541,0.00027397,2]
[331947052,1720886953185,-171.442054,0.00027397,120]
[331947053,1720886953208,-151.49727369,0.00027462,2]
[331947054,1720886953228,-151.49727369,0.00027496,2]
[331947055,1720886953250,-296.4891214,0.00027604,2]
[331947056,1720886953271,-4161.1840578,0.00027612,2]
[331947057,1720886953291,-1249.95,0.00027671,2]
[331947058,1720886953313,-853.27,0.00027671,2]
[331947059,1720886953334,-1159.61,0.00027671,2]
[331947060,1720886953354,-150.0,0.00027806,2]
[331947061,1720886953375,-4161.1840578,0.00027852,2]
[331947062,1720886953396,-296.4891214,0.00027876,2]
[331947063,1720886953418,-1249.95,0.00027945,2]
[331947064,1720886953440,-853.27,0.00027945,2]
[331947065,1720886953464,-1159.61,0.00027945,2]
[331947066,1720886953485,-176.28659675,0.00027951,2]
[331947067,1720886953507,-4161.1840578,0.00027982,2]
[331947068,1720886953528,-532.21,0.00027999,2]
[331947069,1720886953552,-12217.24497428,0.00028,30]
[331947070,1720886953574,-296.4891214,0.00028112,2]
[331947071,1720886953595,-151.49727369,0.00028114,2]
[331947072,1720886953616,-152.94115716,0.00028143,2]
[331947073,1720886953637,-150.0,0.00028204,2]
[331947074,1720886953658,-1249.95,0.00028219,2]
[331947075,1720886953680,-853.27,0.00028219,2]
[331947076,1720886953702,-1159.61,0.00028219,2]
[331947077,1720886953723,-151.49727369,0.00028322,2]
[331947078,1720886953745,-151.49727369,0.00028415,2]
[331947079,1720886953767,-150.0,0.00028416,2]
[331947080,1720886953787,-150.60173835,0.00028432,2]
[331947081,1720886953808,-4161.1840578,0.00028452,2]
[331947082,1720886953831,-296.4891214,0.00028465,2]
[331947083,1720886953853,-170.79925196,0.00028483,2]
[331947084,1720886953874,-1249.95,0.00028493,2]
[331947085,1720886953898,-853.27,0.00028493,2]
[331947086,1720886953921,-1159.61,0.00028493,2]
[331947087,1720886953946,-151.49727369,0.00028585,2]
[331947088,1720886953969,-176.28659675,0.00028683,2]
[331947089,1720886953991,-4730.2,0.00028733,3]
[331947090,1720886954013,-296.4891218,0.00028734,2]
[331947091,1720886954033,-5676.24,0.00028734,3]
[331947092,1720886954054,-6811.49,0.00028743,3]
[331947093,1720886954081,-3313.06283327,0.00028744,3]
[331947094,1720886954117,500.0,0.00024657,2]
[331947095,1720886963719,500.0,0.00024657,2]
[331947096,1720886964310,500.0,0.00024931,2]
[331947097,1720886964583,500.0,0.00025205,2]
[331947098,1720886964898,500.0,0.00025479,2]
[331947099,1720886965169,500.0,0.00025753,2]
[331947100,1720886965504,500.0,0.00026027,2]
[331947101,1720886965692,500.0,0.00026301,2]
[331947102,1720886965983,500.0,0.00026575,2]
[331947103,1720886966279,500.0,0.00026849,2]
[331947104,1720886966549,500.0,0.00027123,2]
[331947110,1720886981668,500.0,0.00024657,2]
[331947111,1720886982009,500.0,0.00024897,2]
[331947112,1720886982297,500.0,0.00025173,2]
[331947113,1720886982608,500.0,0.00025786,2]
[331947114,1720886982873,500.0,0.00026574,2]
[331947116,1720886990391,500.0,0.00024657,2]
[331947117,1720886990761,500.0,0.00024657,2]
[331947121,1720886998885,3818.37133334,0.00027123,2]
[331947122,1720886998963,500.0,0.00024657,2]
[331947142,1720887024791,500.0,0.00024657,2]
[331947143,1720887028433,764.43027422,0.00027123,2]
[331947182,1720887032447,-500.0,0.00027396,2]
[331947184,1720887032457,-500.0,0.00027397,2]
[331947186,1720887032467,-1407.0,0.0002759,2]
[331947188,1720887032476,-500.0,0.00027611,2]
[331947190,1720887032489,-500.0,0.00027671,2]
[331947192,1720887032499,-500.0,0.00027945,2]
[331947194,1720887032508,-500.0,0.00027999,2]
[331947195,1720887032518,-541.38821874,0.00028,2]
[331947244,1720887038415,-468.85917739,0.00028,2]
[331947246,1720887038425,-254.93947749,0.00028,30]
[331947247,1720887038435,-500.0,0.00028219,2]
[331947250,1720887038444,-500.0,0.00028493,2]
[331947252,1720887038454,-16847.5872053,0.00028754,3]
[331947254,1720887038464,-500.0,0.00028766,2]
[331947256,1720887038474,-1249.95,0.00028767,2]
[331947257,1720887038486,-1159.61,0.00028767,2]
[331947260,1720887038500,-500.0,0.00028767,2]
[331947262,1720887038510,-1249.95,0.00029041,2]
[331947264,1720887038519,-1159.61,0.00029041,2]
[331947267,1720887038528,-500.0,0.00029041,2]
[331947270,1720887038539,-151.49727369,0.00029062,2]
[331947272,1720887038549,-151.49727369,0.00029174,2]
[331947274,1720887038558,-16847.5872053,0.00029176,3]
[331947276,1720887038571,-500.0,0.00029195,2]
[331947278,1720887038581,-151.0,0.00029196,7]
[331947280,1720887038590,-4161.1840582,0.00029293,2]
[331947282,1720887038600,-1249.95,0.00029315,2]
[331947284,1720887038610,-1159.61,0.00029315,2]
[331947286,1720887038620,-500.0,0.00029315,2]
[331947288,1720887038630,-703.77459978,0.00029475,2]
[331947290,1720887038639,-151.49727369,0.00029525,2]
[331947292,1720887038650,-151.49727369,0.00029582,2]
[331947294,1720887038660,-1249.95,0.00029589,2]
[331947296,1720887038669,-1159.61,0.00029589,2]
[331947298,1720887038679,-500.0,0.00029589,2]
[331947300,1720887038689,-150.4447953,0.000298,2]
[331947302,1720887038699,-515.85814946,0.00029813,2]
[331947304,1720887038709,-1249.95,0.00029863,2]
[331947306,1720887038719,-151.0,0.00029863,7]
[331947308,1720887038731,-151.0,0.00029863,7]
[331947309,1720887038743,-1159.61,0.00029863,2]
[331947310,1720887038753,-500.0,0.00029863,2]
[331947311,1720887038764,-175.48417072,0.0002987,2]
[331947312,1720887038774,-155.38803879,0.00029939,2]
[331947313,1720887038784,-993.15706015,0.00029979,2]
[331947314,1720887038794,-154.55950541,0.0003,4]
[331947315,1720887038803,-471.89162154,0.0003,4]
[331947316,1720887038813,-730.05403984,0.0003,2]
[331947317,1720887038824,-643.93924923,0.0003,4]
[331947318,1720887038835,-220.0,0.0003,2]
[331947319,1720887038844,-176.28659675,0.00030086,7]
[331947320,1720887038854,-500.0,0.00030135,2]
[331947321,1720887038865,-1249.95,0.00030136,2]
[331947322,1720887038874,-1159.61,0.00030136,2]
[331947323,1720887038884,-500.0,0.00030136,2]
[331947324,1720887038894,-4581.25220715,0.000303,2]
[331947325,1720887038903,-151.49727369,0.0003034,7]
[331947326,1720887038911,-16847.5872053,0.0003039,4]
[331947327,1720887038920,-151.0,0.000304,7]
[331947328,1720887038931,-1249.95,0.0003041,2]
[331947329,1720887038940,-1159.61,0.0003041,2]
[331947330,1720887038950,-500.0,0.0003041,2]
[331947331,1720887038959,-170.79925196,0.00030433,7]
[331947332,1720887038969,-3959.96,0.00030482,3]
[331947333,1720887038978,-3299.97,0.00030482,3]
[331947334,1720887038988,-218.23892103,0.00030491,2]
[331947335,1720887038997,-348.76479472,0.00030491,2]
[331947336,1720887039006,-500.0,0.00030491,2]
[331947337,1720887039015,-500.0,0.00030491,2]
[331947338,1720887039025,-500.0,0.00030491,2]
[331947339,1720887039034,-367.6570364,0.00030491,2]
[331947340,1720887039043,-500.0,0.00030491,2]
[331947341,1720887039052,-500.0,0.00030491,2]
[331947342,1720887039063,-500.0,0.00030491,2]
[331947343,1720887039072,-500.0,0.00030491,2]
[331947344,1720887039081,-225.19704017,0.00030491,2]
[331947345,1720887039090,-500.0,0.00030491,2]
[331947346,1720887039100,-4751.96,0.00030492,3]
[331947347,1720887039110,-152.94115718,0.00030493,7]
[331947348,1720887039121,-16847.5872053,0.00030502,4]
[331947349,1720887039131,-500.0,0.00030511,2]
[331947350,1720887039142,-40027.46016637,0.00030512,60]
[331947351,1720887039152,-151.0,0.00030512,7]
[331947352,1720887039162,-151.0,0.00030512,7]
[331947353,1720887039172,-151.0,0.00030512,7]
[331947354,1720887039185,-151.0,0.00030512,7]
[331947355,1720887039197,-176.28659676,0.00030613,7]
[331947356,1720887039210,-500.0,0.00030673,2]
[331947357,1720887039219,-1249.95,0.00030684,2]
[331947358,1720887039230,-1159.61,0.00030684,2]
[331947359,1720887039240,-483.61,0.00030684,2]
[331947360,1720887039252,-151.49727369,0.00030689,7]
[331947361,1720887039263,-151.0,0.00030831,7]
[331947362,1720887039273,-700.96006667,0.00030926,2]
[331947363,1720887039283,-151.0,0.00030927,7]
[331947364,1720887039294,-161.0,0.00030927,7]
[331947365,1720887039304,-161.0,0.00030927,7]
[331947366,1720887039316,-1250.15,0.00030958,2]
[331947367,1720887039328,-1159.65137754,0.00030958,2]
[331947368,1720887039340,-170.79925199,0.00031014,7]
[331947369,1720887039350,-4581.25220715,0.0003115,2]
[331947370,1720887039360,-203.899999,0.000313,4]
[331947371,1720887039369,-150.0,0.00031416,2]
[331947372,1720887039378,-151.0,0.00031564,4]
[331947373,1720887039387,-151.49727378,0.00031982,7]
[331947374,1720887039399,-4581.25220715,0.00032,2]
[331947375,1720887039409,-251.16176359,0.00032229,4]
[331947376,1720887039419,-300.01328692,0.00032272,4]
[331947377,1720887039429,-300.0,0.000323,6]
[331947378,1720887039439,-151.0,0.000323,7]
[331947379,1720887039449,-16847.5872053,0.00032563,4]
[331947380,1720887039458,-150.56336624,0.00032637,2]
[331947381,1720887039467,-160.0,0.00032642,3]
[331947382,1720887039477,-151.0,0.00032651,5]
[331947383,1720887039488,-151.0,0.00032651,5]
[331947384,1720887039499,-500.0,0.00032824,2]
[331947385,1720887039510,-233.296803,0.00032826,7]
[331947386,1720887039522,-4581.25220715,0.0003285,2]
[331947387,1720887039534,-1000.0,0.00032876,4]
[331947388,1720887039544,-170.35553231,0.00032876,4]
[331947389,1720887039555,-441.41381822,0.00032876,4]